fUST/lending_fUST_20240723
["ID","MTS","AMOUNT","RATE_DAILY","PERIOD"]
[332988589,1721729465734,-407.46,0.00013972,2]
[332988590,1721729465744,-267.19,0.00013972,2]
[332988591,1721729465756,-490.33,0.00013972,2]
[332988592,1721729465766,-150.06,0.00013972,2]
[332988593,1721729465777,-500.0,0.00013972,2]
[332988594,1721729465789,-500.0,0.00013972,2]
[332988595,1721729465799,-257.59,0.00013972,2]
[332988596,1721729465822,-275.6,0.00013972,2]
[332988597,1721729465842,-199.36717528,0.00013972,2]
[332988598,1721729465862,-320.86567253,0.00013972,2]
[332988599,1721729465881,-582.03,0.00013972,2]
[332988600,1721729465901,-372.41,0.00013972,2]
[332988601,1721729465919,-500.0,0.00013972,2]
[332988602,1721729465936,-436.35,0.00013972,2]
[332988603,1721729465951,-498.0,0.00013972,2]
[332988604,1721729465969,-520.52,0.00013972,2]
[332988605,1721729466008,-500.0,0.00013972,2]
[332988606,1721729466033,-367.73,0.00013972,2]
[332988607,1721729466047,-500.0,0.00013972,2]
[332988608,1721729466067,-464.97486245,0.00013972,2]
[332988609,1721729466086,-500.0,0.00013972,2]
[332988610,1721729466109,-511.71,0.00013972,2]
[332988611,1721729466123,-172.79,0.00013972,2]
[332988612,1721729466146,-500.0,0.00013972,2]
[332988613,1721729466168,-500.0,0.00013972,2]
[332988614,1721729466190,-500.0,0.00013972,2]
[332988615,1721729466207,-500.0,0.00013972,2]
[332988616,1721729466227,-587.81,0.00013972,2]
[332988617,1721729466246,-625.95,0.00013972,2]
[332988618,1721729466264,-500.0,0.00013972,2]
[332988619,1721729466281,-500.0,0.00013972,2]
[332988620,1721729466299,-500.0,0.00013972,2]
[332988621,1721729466317,-500.0,0.00013972,2]
[332988622,1721729466334,-202.86,0.00013972,2]
[332988623,1721729466351,-500.0,0.00013972,2]
[332988624,1721729466368,-529.19,0.00013972,2]
[332988625,1721729466383,-369.65,0.00013972,2]
[332988626,1721729466397,-235.22,0.00013972,2]
[332988627,1721729466411,-449.06,0.00013972,2]
[332988628,1721729466425,-500.0,0.00013972,2]
[332988629,1721729466439,-500.0,0.00013972,2]
[332988630,1721729466453,-500.0,0.00013972,2]
[332988631,1721729466468,-258.96,0.00013972,2]
[332988632,1721729466483,-500.0,0.00013972,2]
[332988633,1721729466497,-466.67,0.00013972,2]
[332988634,1721729466512,-646.38,0.00013972,2]
[332988635,1721729466528,-500.0,0.00013972,2]
[332988636,1721729466544,-321.67,0.00013972,2]
[332988637,1721729466561,-256.27,0.00013972,2]
[332988638,1721729466577,-500.0,0.00013972,2]
[332988639,1721729466593,-259.39,0.00013972,2]
[332988640,1721729466608,-362.29,0.00013972,2]
[332988641,1721729466622,-518.72,0.00013972,2]
[332988642,1721729466637,-361.37431925,0.00013972,2]
[332988643,1721729466652,-241.1,0.00013972,2]
[332988644,1721729466667,-531.06,0.00013972,2]
[332988645,1721729466683,-277.01,0.00013972,2]
[332988646,1721729466699,-500.0,0.00013972,2]
[332988647,1721729466713,-500.0,0.00013972,2]
[332988648,1721729466735,-331.67,0.00013972,2]
[332988649,1721729466754,-215.2,0.00013972,2]
[332988650,1721729466771,-500.0,0.00013972,2]
[332988651,1721729466787,-490.72,0.00013972,2]
[332988652,1721729466803,-163.3,0.00013972,2]
[332988653,1721729466819,-415.58,0.00013972,2]
[332988654,1721729466835,-1859.28,0.00013972,2]
[332988655,1721729466851,-642.27,0.00013972,2]
[332988656,1721729466866,-1820.24,0.00013972,2]
[332988657,1721729466882,-514.75,0.00013972,2]
[332988658,1721729466897,-500.0,0.00013972,2]
[332988659,1721729466912,-500.0,0.00013972,2]
[332988660,1721729466928,-500.0,0.00013972,2]
[332988661,1721729466943,-288.61,0.00013972,2]
[332988662,1721729466959,-500.0,0.00013972,2]
[332988663,1721729466973,-500.0,0.00013972,2]
[332988664,1721729466988,-500.0,0.00013972,2]
[332988665,1721729467002,-500.0,0.00013972,2]
[332988666,1721729467017,-412.09,0.00013972,2]
[332988667,1721729467031,-460.24857475,0.00013972,2]
[332988668,1721729467048,-500.0,0.00013972,2]
[332988669,1721729467064,-164.73,0.00013972,2]
[332988670,1721729467082,-379.4,0.00013972,2]
[332988671,1721729467095,-246.82,0.00013972,2]
[332988672,1721729467105,-438.24,0.00013972,2]
[332988673,1721729467118,-500.0,0.00013972,2]
[332988674,1721729467299,-594.68,0.00013972,2]
[332988675,1721729467318,-500.0,0.00013972,2]
[332988676,1721729467328,-500.0,0.00013972,2]
[332988677,1721729467338,-500.0,0.00013972,2]
[332988678,1721729467347,-248.42,0.00013972,2]
[332988679,1721729467356,-500.0,0.00013972,2]
[332988680,1721729467367,-526.73,0.00013972,2]
[332988681,1721729467377,-500.0,0.00013972,2]
[332988682,1721729467386,-500.0,0.00013972,2]
[332988683,1721729467396,-500.0,0.00013972,2]
[332988684,1721729467406,-500.0,0.00013972,2]
[332988685,1721729467415,-500.0,0.00013972,2]
[332988686,1721729467424,-500.0,0.00013972,2]
[332988687,1721729467433,-500.0,0.00013972,2]
[332988688,1721729467443,-308.27,0.00013972,2]
[332988689,1721729467452,-280.05,0.00013972,2]
[332988690,1721729467462,-500.0,0.00013972,2]
[332988691,1721729467471,-319.68,0.00013972,2]
[332988692,1721729467481,-501.74582838,0.00013972,2]
[332988693,1721729467490,-530.69,0.00013972,2]
[332988694,1721729467500,-500.0,0.00013972,2]
[332988695,1721729467509,-500.0,0.00013972,2]
[332988696,1721729467518,-500.0,0.00013972,2]
[332988697,1721729467528,-478.44,0.00013972,2]
[332988698,1721729467537,-243.19,0.00013972,2]
[332988699,1721729467547,-500.0,0.00013972,2]
[332988700,1721729467556,-500.0,0.00013972,2]
[332988701,1721729467566,-471.32,0.00013972,2]
[332988702,1721729467576,-150.46,0.00013972,2]
[332988703,1721729467585,-500.0,0.00013972,2]
[332988704,1721729467595,-257.9,0.00013972,2]
[332988705,1721729467604,-500.0,0.00013972,2]
[332988706,1721729467616,-500.0,0.00013972,2]
[332988707,1721729467625,-500.0,0.00013972,2]
[332988708,1721729467636,-500.0,0.00013972,2]
[332988709,1721729467646,-500.0,0.00013972,2]
[332988710,1721729467655,-346.6,0.00013972,2]
[332988711,1721729467665,-500.0,0.00013972,2]
[332988712,1721729467674,-620.09,0.00013972,2]
[332988713,1721729467684,-210.22,0.00013972,2]
[332988714,1721729467694,-500.0,0.00013972,2]
[332988715,1721729467703,-460.35,0.00013972,2]
[332988716,1721729467713,-500.0,0.00013972,2]
[332988717,1721729467722,-500.0,0.00013972,2]
[332988718,1721729467731,-500.0,0.00013972,2]
[332988719,1721729467741,-500.0,0.00013972,2]
[332988720,1721729467750,-500.0,0.00013972,2]
[332988721,1721729467759,-153.33,0.00013972,2]
[332988722,1721729467768,-493.02,0.00013972,2]
[332988723,1721729467777,-500.0,0.00013972,2]
[332988724,1721729467787,-156.49,0.00013972,2]
[332988725,1721729467796,-500.0,0.00013972,2]
[332988726,1721729467806,-500.0,0.00013972,2]
[332988727,1721729467815,-492.86,0.00013972,2]
[332988728,1721729467825,-500.0,0.00013972,2]
[332988729,1721729467834,-500.0,0.00013972,2]
[332988730,1721729467844,-500.0,0.00013972,2]
[332988731,1721729467853,-500.0,0.00013972,2]
[332988732,1721729467863,-500.0,0.00013972,2]
[332988733,1721729467873,-500.0,0.00013972,2]
[332988734,1721729467882,-500.0,0.00013972,2]
[332988735,1721729467892,-500.0,0.00013972,2]
[332988736,1721729467902,-500.0,0.00013972,2]
[332988737,1721729467912,-205.04,0.00013972,2]
[332988738,1721729467922,-500.0,0.00013972,2]
[332988739,1721729467932,-370.76,0.00013972,2]
[332988740,1721729467941,-500.0,0.00013972,2]
[332988741,1721729467951,-500.0,0.00013972,2]
[332988742,1721729467969,-500.0,0.00013972,2]
[332988743,1721729467981,-396.9,0.00013972,2]
[332988744,1721729467992,-511.12,0.00013972,2]
[332988745,1721729468002,-500.0,0.00013972,2]
[332988746,1721729468013,-500.0,0.00013972,2]
[332988747,1721729468023,-500.0,0.00013972,2]
[332988748,1721729468034,-632.65,0.00013972,2]
[332988749,1721729468044,-150.53,0.00013972,2]
[332988750,1721729468054,-500.0,0.00013972,2]
[332988751,1721729468065,-500.0,0.00013972,2]
[332988752,1721729468079,-500.0,0.00013972,2]
[332988753,1721729468089,-500.0,0.00013972,2]
[332988754,1721729468099,-500.0,0.00013972,2]
[332988755,1721729468109,-500.0,0.00013972,2]
[332988756,1721729468120,-541.28,0.00013972,2]
[332988757,1721729468130,-226.32,0.00013972,2]
[332988758,1721729468140,-500.0,0.00013972,2]
[332988759,1721729468150,-302.67,0.00013972,2]
[332988760,1721729468159,-258.88,0.00013972,2]
[332988761,1721729468169,-500.0,0.00013972,2]
[332988762,1721729468180,-500.0,0.00013972,2]
[332988763,1721729468190,-500.0,0.00013972,2]
[332988764,1721729468200,-500.0,0.00013972,2]
[332988765,1721729468210,-310.64,0.00013972,2]
[332988766,1721729468220,-500.0,0.00013972,2]
[332988767,1721729468231,-528.15,0.00013972,2]
[332988768,1721729468241,-500.0,0.00013972,2]
[332988769,1721729468251,-500.0,0.00013972,2]
[332988770,1721729468261,-311.33,0.00013972,2]
[332988771,1721729468271,-274.61,0.00013972,2]
[332988772,1721729468280,-500.0,0.00013972,2]
[332988773,1721729468290,-500.0,0.00013972,2]
[332988774,1721729468299,-256.58956,0.00013972,2]
[332988775,1721729468309,-153.5,0.00013972,2]
[332988776,1721729468318,-500.0,0.00013972,2]
[332988777,1721729468328,-500.0,0.00013972,2]
[332988778,1721729468337,-446.93,0.00013972,2]
[332988779,1721729468347,-242.87,0.00013972,2]
[332988780,1721729468357,-553.18,0.00013972,2]
[332988781,1721729468369,-369.18,0.00013972,2]
[332988782,1721729468378,-500.0,0.00013972,2]
[332988783,1721729468389,-247.55,0.00013972,2]
[332988784,1721729468398,-500.0,0.00013972,2]
[332988785,1721729468408,-522.26,0.00013972,2]
[332988786,1721729468418,-286.23527138,0.00013972,2]
[332988787,1721729468428,-254.22,0.00013972,2]
[332988788,1721729468437,-320.94,0.00013972,2]
[332988789,1721729468446,-500.0,0.00013972,2]
[332988790,1721729468456,-500.0,0.00013972,2]
[332988791,1721729468466,-500.0,0.00013972,2]
[332988792,1721729468476,-151.18,0.00013972,2]
[332988793,1721729468486,-390.37,0.00013972,2]
[332988794,1721729468495,-500.0,0.00013972,2]
[332988795,1721729468506,-500.0,0.00013972,2]
[332988796,1721729468515,-504.52,0.00013972,2]
[332988797,1721729468525,-500.0,0.00013972,2]
[332988798,1721729468535,-500.0,0.00013972,2]
[332988799,1721729468545,-530.72,0.00013972,2]
[332988800,1721729468554,-606.74,0.00013972,2]
[332988801,1721729468564,-451.64,0.00013972,2]
[332988802,1721729468574,-162.8,0.00013972,2]
[332988803,1721729468583,-500.0,0.00013972,2]
[332988804,1721729468593,-344.88,0.00013972,2]
[332988805,1721729468604,-500.0,0.00013972,2]
[332988806,1721729468615,-500.0,0.00013972,2]
[332988807,1721729468626,-333.85,0.00013972,2]
[332988808,1721729468635,-500.0,0.00013972,2]
[332988809,1721729468646,-567.15,0.00013972,2]
[332988810,1721729468655,-556.82,0.00013972,2]
[332988811,1721729468665,-500.0,0.00013972,2]
[332988812,1721729468675,-500.0,0.00013972,2]
[332988813,1721729468685,-500.0,0.00013972,2]
[332988814,1721729468695,-337.67,0.00013972,2]
[332988815,1721729468704,-500.0,0.00013972,2]
[332988816,1721729468714,-500.0,0.00013972,2]
[332988817,1721729468725,-500.0,0.00013972,2]
[332988818,1721729468735,-500.0,0.00013972,2]
[332988819,1721729468746,-500.0,0.00013972,2]
[332988820,1721729468756,-500.0,0.00013972,2]
[332988821,1721729468766,-494.58,0.00013972,2]
[332988822,1721729468775,-500.0,0.00013972,2]
[332988823,1721729468785,-500.0,0.00013972,2]
[332988824,1721729468795,-500.0,0.00013972,2]
[332988825,1721729468805,-500.0,0.00013972,2]
[332988826,1721729468817,-595.18,0.00013972,2]
[332988827,1721729468829,-500.0,0.00013972,2]
[332988828,1721729468841,-500.0,0.00013972,2]
[332988829,1721729468850,-269.0,0.00013972,2]
[332988830,1721729468861,-500.0,0.00013972,2]
[332988831,1721729468870,-525.57,0.00013972,2]
[332988832,1721729468879,-516.96,0.00013972,2]
[332988833,1721729468889,-528.7,0.00013972,2]
[332988834,1721729468901,-500.0,0.00013972,2]
[332988835,1721729468912,-500.0,0.00013972,2]
[332988836,1721729468923,-500.0,0.00013972,2]
[332988837,1721729468934,-500.0,0.00013972,2]
[332988838,1721729468945,-500.0,0.00013972,2]
[332988839,1721729468957,-467.05,0.00013972,2]
[332988840,1721729468966,-420.42,0.00013972,2]
[332988841,1721729468976,-352.47,0.00013972,2]
[332988842,1721729468986,-500.0,0.00013972,2]
[332988843,1721729468995,-500.0,0.00013972,2]
[332988844,1721729469005,-500.0,0.00013972,2]
[332988845,1721729469018,-500.0,0.00013972,2]
[332988846,1721729469030,-580.21,0.00013972,2]
[332988847,1721729469042,-413.43,0.00013972,2]
[332988848,1721729469054,-500.0,0.00013972,2]
[332988849,1721729469064,-376.39,0.00013972,2]
[332988850,1721729469077,-282.12,0.00013972,2]
[332988851,1721729469088,-500.0,0.00013972,2]
[332988852,1721729469098,-500.0,0.00013972,2]
[332988853,1721729469109,-306.65,0.00013972,2]
[332988854,1721729469120,-343.4,0.00013972,2]
[332988855,1721729469131,-280.32,0.00013972,2]
[332988856,1721729469141,-163.15,0.00013972,2]
[332988857,1721729469151,-333.68,0.00013972,2]
[332988858,1721729469161,-500.0,0.00013972,2]
[332988859,1721729469172,-500.0,0.00013972,2]
[332988860,1721729469183,-301.85,0.00013972,2]
[332988861,1721729469193,-253.24,0.00013972,2]
[332988862,1721729469204,-500.0,0.00013972,2]
[332988863,1721729469216,-500.0,0.00013972,2]
[332988864,1721729469228,-500.0,0.00013972,2]
[332988865,1721729469239,-398.6,0.00013972,2]
[332988866,1721729469252,-428.62,0.00013972,2]
[332988867,1721729469262,-168.16482445,0.00013972,2]
[332988868,1721729469272,-627.34,0.00013972,2]
[332988869,1721729469283,-191.09,0.00013972,2]
[332988870,1721729469293,-500.0,0.00013972,2]
[332988871,1721729469303,-500.0,0.00013972,2]
[332988872,1721729469313,-500.0,0.00013972,2]
[332988873,1721729469324,-424.29,0.00013972,2]
[332988874,1721729469334,-500.0,0.00013972,2]
[332988875,1721729469345,-503.91,0.00013972,2]
[332988876,1721729469355,-235.91,0.00013972,2]
[332988877,1721729469366,-500.0,0.00013972,2]
[332988878,1721729469375,-500.0,0.00013972,2]
[332988879,1721729469385,-500.0,0.00013972,2]
[332988880,1721729469394,-500.0,0.00013972,2]
[332988881,1721729469404,-472.47,0.00013972,2]
[332988882,1721729469414,-500.0,0.00013972,2]
[332988883,1721729469424,-289.79,0.00013972,2]
[332988884,1721729469433,-500.0,0.00013972,2]
[332988885,1721729469442,-500.0,0.00013972,2]
[332988886,1721729469452,-500.0,0.00013972,2]
[332988887,1721729469461,-540.99,0.00013972,2]
[332988888,1721729469470,-176.77,0.00013972,2]
[332988889,1721729469480,-500.0,0.00013972,2]
[332988890,1721729469489,-249.53,0.00013972,2]
[332988891,1721729469499,-500.0,0.00013972,2]
[332988892,1721729469508,-500.0,0.00013972,2]
[332988893,1721729469518,-232.88,0.00013972,2]
[332988894,1721729469528,-500.0,0.00013972,2]
[332988895,1721729469538,-500.0,0.00013972,2]
[332988896,1721729469548,-292.97,0.00013972,2]
[332988897,1721729469557,-226.69,0.00013972,2]
[332988898,1721729469566,-535.2,0.00013972,2]
[332988899,1721729469576,-500.0,0.00013972,2]
[332988900,1721729469585,-500.0,0.00013972,2]
[332988901,1721729469596,-175.95,0.00013972,2]
[332988902,1721729469605,-334.42,0.00013972,2]
[332988903,1721729469615,-500.0,0.00013972,2]
[332988904,1721729469625,-500.0,0.00013972,2]
[332988905,1721729469634,-419.27,0.00013972,2]
[332988906,1721729469643,-228.45,0.00013972,2]
[332988907,1721729469653,-397.15,0.00013972,2]
[332988908,1721729469662,-273.04,0.00013972,2]
[332988909,1721729469672,-270.77,0.00013972,2]
[332988910,1721729469682,-455.18,0.00013972,2]
[332988911,1721729469692,-340.53,0.00013972,2]
[332988912,1721729469703,-500.0,0.00013972,2]
[332988913,1721729469714,-180.24,0.00013972,2]
[332988914,1721729469725,-293.03,0.00013972,2]
[332988915,1721729469863,-500.0,0.00013972,2]
[332988916,1721729469879,-246.37,0.00013972,2]
[332988917,1721729469889,-439.08,0.00013972,2]
[332988918,1721729469898,-273.12,0.00013972,2]
[332988919,1721729469908,-500.0,0.00013972,2]
[332988920,1721729469918,-371.3,0.00013972,2]
[332988921,1721729469928,-191.07,0.00013972,2]
[332988922,1721729469938,-277.57,0.00013972,2]
[332988923,1721729469947,-604.24,0.00013972,2]
[332988924,1721729469957,-500.0,0.00013972,2]
[332988925,1721729469967,-249.23,0.00013972,2]
[332988926,1721729469977,-500.0,0.00013972,2]
[332988927,1721729469986,-300.46,0.00013972,2]
[332988928,1721729469996,-500.0,0.00013972,2]
[332988929,1721729470005,-224.61,0.00013972,2]
[332988930,1721729470015,-432.21,0.00013972,2]
[332988931,1721729470024,-323.7,0.00013972,2]
[332988932,1721729470034,-500.0,0.00013972,2]
[332988933,1721729470044,-500.0,0.00013972,2]
[332988934,1721729470055,-510.29,0.00013972,2]
[332988935,1721729470064,-186.02,0.00013972,2]
[332988936,1721729470075,-207.58,0.00013972,2]
[332988937,1721729470084,-500.0,0.00013972,2]
[332988938,1721729470093,-500.0,0.00013972,2]
[332988939,1721729470102,-500.0,0.00013972,2]
[332988940,1721729470113,-299.66,0.00013972,2]
[332988941,1721729470123,-500.0,0.00013972,2]
[332988942,1721729470132,-500.0,0.00013972,2]
[332988943,1721729470141,-500.0,0.00013972,2]
[332988944,1721729470154,-500.0,0.00013972,2]
[332988945,1721729470163,-361.16,0.00013972,2]
[332988946,1721729470173,-500.0,0.00013972,2]
[332988947,1721729470183,-385.78,0.00013972,2]
[332988948,1721729470192,-162.29,0.00013972,2]
[332988949,1721729470201,-500.0,0.00013972,2]
[332988950,1721729470211,-500.0,0.00013972,2]
[332988951,1721729470222,-500.0,0.00013972,2]
[332988952,1721729470233,-305.51,0.00013972,2]
[332988953,1721729470243,-240.83,0.00013972,2]
[332988954,1721729470253,-500.0,0.00013972,2]
[332988955,1721729470263,-500.0,0.00013972,2]
[332988956,1721729470273,-500.0,0.00013972,2]
[332988957,1721729470282,-500.0,0.00013972,2]
[332988958,1721729470291,-500.0,0.00013972,2]
[332988959,1721729470300,-500.0,0.00013972,2]
[332988960,1721729470310,-500.0,0.00013972,2]
[332988961,1721729470320,-497.61,0.00013972,2]
[332988962,1721729470332,-215.27,0.00013972,2]
[332988963,1721729470343,-399.95,0.00013972,2]
[332988964,1721729470353,-500.0,0.00013972,2]
[332988965,1721729470363,-500.0,0.00013972,2]
[332988966,1721729470373,-500.0,0.00013972,2]
[332988967,1721729470383,-202.34,0.00013972,2]
[332988968,1721729470392,-353.88,0.00013972,2]
[332988969,1721729470402,-269.17,0.00013972,2]
[332988970,1721729470411,-500.0,0.00013972,2]
[332988971,1721729470421,-291.23,0.00013972,2]
[332988972,1721729470431,-240.9,0.00013972,2]
[332988973,1721729470440,-500.0,0.00013972,2]
[332988974,1721729470452,-500.0,0.00013972,2]
[332988975,1721729470461,-500.0,0.00013972,2]
[332988976,1721729470471,-218.01,0.00013972,2]
[332988977,1721729470480,-267.11,0.00013972,2]
[332988978,1721729470490,-393.37,0.00013972,2]
[332988979,1721729470499,-198.09,0.00013972,2]
[332988980,1721729470509,-500.0,0.00013972,2]
[332988981,1721729470518,-153.22,0.00013972,2]
[332988982,1721729470527,-151.9,0.00013972,2]
[332988983,1721729470536,-238.65,0.00013972,2]
[332988984,1721729470545,-415.38,0.00013972,2]
[332988985,1721729470554,-500.0,0.00013972,2]
[332988986,1721729470564,-500.0,0.00013972,2]
[332988987,1721729470573,-468.2,0.00013972,2]
[332988988,1721729470582,-157.43,0.00013972,2]
[332988989,1721729470591,-259.99,0.00013972,2]
[332988990,1721729470600,-500.0,0.00013972,2]
[332988991,1721729470611,-500.0,0.00013972,2]
[332988992,1721729470620,-588.08,0.00013972,2]
[332988993,1721729470629,-245.18,0.00013972,2]
[332988994,1721729470638,-162.28,0.00013972,2]
[332988995,1721729470647,-558.23,0.00013972,2]
[332988996,1721729470657,-434.58,0.00013972,2]
[332988997,1721729470666,-500.0,0.00013972,2]
[332988998,1721729470675,-194.42,0.00013972,2]
[332988999,1721729470684,-500.0,0.00013972,2]
[332989000,1721729470694,-289.38,0.00013972,2]
[332989001,1721729470703,-500.0,0.00013972,2]
[332989002,1721729470712,-221.85,0.00013972,2]
[332989003,1721729470721,-345.08,0.00013972,2]
[332989004,1721729470730,-580.37,0.00013972,2]
[332989005,1721729470740,-205.25,0.00013972,2]
[332989006,1721729470749,-500.0,0.00013972,2]
[332989007,1721729470758,-218.3,0.00013972,2]
[332989008,1721729470768,-500.0,0.00013972,2]
[332989009,1721729470777,-500.0,0.00013972,2]
[332989010,1721729470787,-500.0,0.00013972,2]
[332989011,1721729470796,-500.0,0.00013972,2]
[332989012,1721729470806,-500.0,0.00013972,2]
[332989013,1721729470815,-500.0,0.00013972,2]
[332989014,1721729470824,-500.0,0.00013972,2]
[332989015,1721729470833,-485.83,0.00013972,2]
[332989016,1721729470843,-500.0,0.00013972,2]
[332989017,1721729470852,-500.0,0.00013972,2]
[332989018,1721729470863,-500.0,0.00013972,2]
[332989019,1721729470873,-500.0,0.00013972,2]
[332989020,1721729470883,-427.86,0.00013972,2]
[332989021,1721729470892,-500.0,0.00013972,2]
[332989022,1721729470901,-456.04,0.00013972,2]
[332989023,1721729470911,-169.01,0.00013972,2]
[332989024,1721729470920,-500.0,0.00013972,2]
[332989025,1721729470930,-207.87,0.00013972,2]
[332989026,1721729470939,-500.0,0.00013972,2]
[332989027,1721729470950,-500.0,0.00013972,2]
[332989028,1721729470960,-500.0,0.00013972,2]
[332989029,1721729470970,-500.0,0.00013972,2]
[332989030,1721729470980,-395.5173217,0.00013972,2]
[332989031,1721729470989,-500.0,0.00013972,2]
[332989032,1721729470999,-500.0,0.00013972,2]
[332989033,1721729471009,-500.0,0.00013972,2]
[332989034,1721729471019,-500.0,0.00013972,2]
[332989035,1721729471028,-460.11055375,0.00013972,2]
[332989036,1721729471038,-500.0,0.00013972,2]
[332989037,1721729471047,-500.0,0.00013972,2]
[332989038,1721729471056,-271.94,0.00013972,2]
[332989039,1721729471067,-500.0,0.00013972,2]
[332989040,1721729471076,-151.0,0.00013972,2]
[332989041,1721729471087,-151.0,0.00013972,2]
[332989042,1721729471097,-151.0,0.00013972,2]
[332989043,1721729471107,-274.216436,0.00013972,2]
[332989044,1721729471118,-188.09,0.00013972,2]
[332989045,1721729471128,-235.15,0.00013972,2]
[332989046,1721729471137,-151.0,0.00013972,2]
[332989047,1721729471147,-151.0,0.00013972,2]
[332989048,1721729471157,-151.0,0.00013972,2]
[332989049,1721729471166,-151.0,0.00013972,2]
[332989050,1721729471176,-151.0,0.00013972,2]
[332989051,1721729471185,-151.0,0.00013972,2]
[332989052,1721729471195,-151.0,0.00013972,2]
[332989053,1721729471205,-151.0,0.00013972,2]
[332989054,1721729471215,-151.0,0.00013972,2]
[332989055,1721729471224,-151.0,0.00013972,2]
[332989056,1721729471233,-151.0,0.00013972,2]
[332989057,1721729471245,-203.0,0.00013972,2]
[332989058,1721729471256,-151.0,0.00013972,2]
[332989059,1721729471266,-151.0,0.00013972,2]
[332989060,1721729471275,-151.0,0.00013972,2]
[332989061,1721729471285,-151.0,0.00013972,2]
[332989062,1721729471294,-151.0,0.00013972,2]
[332989063,1721729471304,-151.0,0.00013972,2]
[332989064,1721729471313,-151.0,0.00013972,2]
[332989065,1721729471323,-151.0,0.00013972,2]
[332989066,1721729471333,-151.0,0.00013972,2]
[332989067,1721729471343,-500.0,0.00013972,2]
[332989068,1721729471353,-4037.59,0.00013972,2]
[332989069,1721729471363,-1122.55,0.00013972,2]
[332989070,1721729471373,-674.2,0.00013972,2]
[332989071,1721729471382,-500.0,0.00013972,2]
[332989072,1721729471391,-225.31,0.00013972,2]
[332989073,1721729471401,-500.0,0.00013972,2]
[332989074,1721729471411,-500.0,0.00013972,2]
[332989075,1721729471421,-500.0,0.00013972,2]
[332989076,1721729471431,-500.0,0.00013972,2]
[332989077,1721729471440,-500.0,0.00013972,2]
[332989078,1721729471450,-500.0,0.00013972,2]
[332989079,1721729471459,-500.0,0.00013972,2]
[332989080,1721729471470,-500.0,0.00013972,2]
[332989081,1721729471480,-500.0,0.00013972,2]
[332989082,1721729471489,-653.4,0.00013972,2]
[332989083,1721729471499,-500.0,0.00013972,2]
[332989084,1721729471509,-445.87,0.00013972,2]
[332989085,1721729471519,-3318.09,0.00013972,2]
[332989086,1721729471529,-500.0,0.00013972,2]
[332989087,1721729471539,-3152.33,0.00013972,2]
[332989088,1721729471549,-1460.97,0.00013972,2]